Cogmind - Beta 13 @@@ ROGUE MODE // 2024.05.19 @ 23:39:56 Player: MrMistersen Result: Destroyed by G-34 Mercenary with Small Laser Performance ------------- Evolutions (0) 0 Regions Visited (1) 200 Robots Destroyed (8) 40 Value Destroyed (86) 86 Prototype IDs (0) 0 Alien Tech Used (0) 0 Bonus (0) 0 TOTAL SCORE: 326 Bonus ------- None Cogmind --------- Core Integrity 0/250 Matter 277/300 Energy 100/100 System Corruption 8% Temperature Cool (6) Movement Walking (120) Location -10/Materials Parts ------- > --- POWER (1) -------- (None) > --- PROPULSION (2) --- Aluminum Leg > --- UTILITY (2) ------ Seismic Detector > --- WEAPON (2) ------- Light Assault Rifle > --- INVENTORY (5) ---- Light Ion Engine Small Matter Pod (50) Peak State ------------ > --- POWER ------------ Light Ion Engine > --- PROPULSION ------- Aluminum Leg Aluminum Leg > --- UTILITY ---------- Heat Sink Small Matter Pod > --- WEAPON ----------- Medium Laser Light Assault Rifle > --- INVENTORY -------- Light Ion Engine Light Assault Rifle [Rating: 7] Favorites ----------- Power Light Ion Engine Engine Light Ion Engine Propulsion Aluminum Leg Leg Aluminum Leg Utility Heat Sink Device Heat Sink Storage Small Matter Pod Weapon Medium Laser Energy Gun Medium Laser Ballistic Gun Light Assault Rifle Special Weapon Mining Laser Build | -11 -10 ------- Run | Yrd Mat Slots Evolved . | . . Power . | . . Propulsion . | . . Utility . | . . Weapon . | . . Parts Attached 12 | 11 1 Power 2 | 2 . Engine 2 | 2 . Core . | . . Reactor . | . . Propulsion 2 | 2 . Treads . | . . Leg 2 | 2 . Wheel . | . . Hover . | . . Flight . | . . Utility 3 | 3 . Device 2 | 2 . Storage 1 | 1 . Processor . | . . Hackware . | . . Protection . | . . Artifact . | . . Weapon 5 | 4 1 Energy Gun 1 | 1 . Energy Cannon . | . . Ballistic Gun 3 | 2 1 Ballistic Cannon . | . . Launcher . | . . Special Weapon 1 | 1 . Impact Weapon . | . . Slashing Weapon . | . . Piercing Weapon . | . . Special Melee Weapon . | . . Unidentified Prototypes . | . . Parts Lost 6 | 2 4 Power 2 | 1 1 Propulsion 1 | . 1 Utility 1 | . 1 Weapon 2 | 1 1 Highest Loss Streak 3 | 2 3 To Critical Strikes . | . . Average Slot Usage (%) 80 | . 80 Engine 13 | . 13 Leg 14 | . 14 Device 25 | . 25 Energy Gun 12 | . 12 Ballistic Gun 14 | . 14 Naked Turns . | . . Heaviest Build 8 | 8 8 Greatest Support 20 | 20 20 Greatest Overweight (x) . | . . Average Overweight (x) . | . . Largest Inventory Capacity 5 | 5 5 Average Capacity 5 | 5 5 Most Carried 5 | 5 3 Average Carried 3 | 3 2 Final Capacity 5 | 5 5 Final Carried 3 | 3 2 Class Distribution -------------------- 100% | Mutant Dominant Class ---------------- Mutant | -10/Materials Resources | -11 -10 ----------- Run | Yrd Mat Matter Collected 363 | 320 43 Remotely . | . . Salvage Created 147 | 104 43 Parts 15 | 11 4 Haulers Intercepted . | . . Recyclers Shooed . | . . Parts Field Recycled . | . . Retrieved Matter . | . . Parts Self-Destructed . | . . Prevented . | . . Kills | -11 -10 ------- Run | Yrd Mat Combat Hostiles Destroyed 4 | 1 3 Guns 4 | 1 3 Classes Destroyed 4 | 3 1 Worker 1 | 1 . Tunneler 3 | 3 . Swarmer 3 | . 3 Grunt 1 | 1 . Best Kill Streak 3 | 2 3 Combat Bots Only 3 | 1 3 Max Kills in Single Turn 1 | 1 1 Gunslinging . | . . Exploded . | . . Melee . | . . Uniques/NPCs Destroyed . | . . Combat | -11 -10 -------- Run | Yrd Mat Hostile Shots Fired 73 | 9 64 Missed 14 | 1 13 Damage Taken 875 | 364 511 Core 258 | 99 159 Absorbed by Shields . | . . Core Remaining (%) 60 | 60 . Volleys Fired 76 | 45 31 Largest 2 | 2 2 Hottest 150 | 150 70 Shots Fired 117 | 80 37 Gun 95 | 58 37 Cannon . | . . Launcher . | . . Special 22 | 22 . Kinetic 49 | 18 31 Thermal 68 | 62 6 Explosive . | . . Electromagnetic . | . . Robot Hit Streak 14 | 14 4 Robot Miss Streak 3 | 3 3 Penetration Max . | . . Secondary Targets . | . . Shots Hit Robots 45 | 23 22 Core Hits 14 | 8 6 Critical Kills . | . . Critical Parts Destroyed . | . . Critical Strikes 3 | 3 . Burn 3 | 3 . Melee Attacks . | . . Impact . | . . Slashing . | . . Piercing . | . . Sneak Attacks . | . . Combat Hostiles . | . . Follow-up Attacks . | . . Damage Inflicted 456 | 237 219 Guns 456 | 237 219 Cannons . | . . Explosions . | . . Melee . | . . Ramming . | . . Kinetic 244 | 75 169 Thermal 212 | 162 50 Explosive . | . . Electromagnetic . | . . Impact . | . . Slashing . | . . Piercing . | . . Highest Corruption 8 | 8 8 Average Corruption 8 | 8 8 Corruption Purged . | . . Corruption Blocked . | . . Effects 6 | 1 5 Message Errors 1 | . 1 Matter Fused 4 | 1 3 Parts Rejected 1 | . 1 Overload Shots . | . . Overflow Damage . | . . Projectiles . | . . Explosions . | . . Melee . | . . Knockbacks . | . . Impact . | . . Kinetic . | . . Secondary . | . . Self-Inflicted Damage . | . . Shots . | . . Rammed . | . . Targets Rammed . | . . Kicked . | . . Crushed . | . . Highest Temperature 88 | 88 80 Average Temperature 31 | 28 36 Received Heat Transfer 276 | 48 228 Siege Activations . | . . Robots Corrupted . | . . Combat Hostiles . | . . Parts Fried . | . . Impact Corruptions . | . . Robots Melted . | . . Combat Hostiles . | . . Parts Melted 2 | 2 . Heat Transferred 851 | 703 148 Parts Sabotaged . | . . Parts Stolen . | . . Parts Stripped . | . . Power Chain Reactions . | . . Alert | -11 -10 ------- Run | Yrd Mat Peak Influence 70 | 40 70 Initial . | . . Average 32 | 24 55 Maximum Alert Level . | . . Low Security (%) 100 | 100 100 Level 1 . | . . Level 2 . | . . Level 3 . | . . Level 4 . | . . Level 5 . | . . High Security . | . . Max Security . | . . Squads Dispatched 1 | . 1 Investigation 1 | . 1 Extermination . | . . Reinforcement . | . . Assault . | . . Garrison . | . . Intercept . | . . Searches Triggered . | . . Construction Impeded . | . . Haulers Reinforced . | . . Active Scanning Responses . | . . Cargo Convoy Interrupts . | . . Stealth | -11 -10 --------- Run | Yrd Mat Distress Signals . | . . Communications Jammed . | . . Distress Signals . | . . Times Spotted 7 | 1 6 Peak Tracking Total 3 | 1 3 Tactical Retreats . | . . Traps | -11 -10 ------- Run | Yrd Mat Traps Triggered 1 | . 1 Indirectly . | . . Trap Hack Attempts . | . . Triggered . | . . Disarmed . | . . Reprogrammed . | . . Reused . | . . Traps Extracted . | . . Installed . | . . Triggered . | . . Machines | -11 -10 ---------- Run | Yrd Mat Machines Disabled . | . . Max in Single Turn . | . . Machines Repaired . | . . Machines Dismantled . | . . Machines Sabotaged . | . . Overloaded Fab Kills . | . . Hacking | -11 -10 --------- Run | Yrd Mat Machines Accessed 1 | . 1 Terminals . | . . Fabricators . | . . Repair Stations . | . . Recycling Units 1 | . 1 Scanalyzers . | . . Garrison Access . | . . Total Hacks 1 | . 1 Successful . | . . Failed 1 | . 1 Catastrophic . | . . Database Lockouts . | . . Manual . | . . Terminals . | . . Fabricators . | . . Repair Stations . | . . Recycling Units 1 | . 1 Scanalyzers . | . . Garrison Access . | . . Terminal Hacks . | . . Fabricator Hacks . | . . Repair Station Hacks . | . . Recycling Unit Hacks . | . . Scanalyzer . | . . Garrison Access Hacks . | . . Unauthorized Hacks . | . . Terminals . | . . Fabricators . | . . Repair Stations . | . . Recycling Units . | . . Scanalyzers . | . . Garrison Access . | . . Data Cores Recovered . | . . Used . | . . Hacking Detections . | . . Full Trace Events . | . . Feedback Events . | . . Feedback Blocked . | . . Robot Schematics Acquired . | . . Robots Built . | . . Authchips . | . . Time . | . . Total Robot Build Rating . | . . Part Schematics Acquired . | . . Parts Built . | . . Authchips . | . . Time . | . . Total Part Build Rating . | . . Parts Repaired . | . . Time . | . . Parts Recycled . | . . Recycled Matter . | . . Retrieved Matter . | . . Retrieved Components . | . . Parts Scanalyzed . | . . Part Schematics Acquired . | . . Parts Damaged . | . . Bothacking | -11 -10 ------------ Run | Yrd Mat Used RIF Installer . | . . Robots Hacked . | . . Non-combat . | . . Combat . | . . Robot Hacks Applied . | . . Relay Couplers Released . | . . Fabnet Peak Effective % . | . . Robots Rewired . | . . Allies Hacked . | . . Hacks Repelled . | . . Allies | -11 -10 -------- Run | Yrd Mat Total Allies . | . . Largest Group . | . . Highest-Rated Group . | . . Highest-Rated Ally . | . . Total Orders . | . . Ally Attacks . | . . Total Damage . | . . Kills . | . . Allies Corrupted . | . . Allies Melted . | . . Intel | -11 -10 ------- Run | Yrd Mat Robot Analysis Total . | . . Derelict Logs Recovered . | . . Drone Launches . | . . Drone Recoveries . | . . Exploration | -11 -10 ------------- Run | Yrd Mat Turns Passed 602 | 449 153 Spaces Moved 303 | 229 74 Core 20 | 20 . Treads . | . . Legs 283 | 209 74 Wheels . | . . Hover . | . . Flight . | . . Fastest Speed 50 | 50 120 Average Speed 115 | 113 120 Slowest Speed 120 | 120 120 Overloaded Moves . | . . Propulsion Burnouts . | . . Robots Hopped . | . . Cave-ins Triggered 1 | 1 . Exploration Rate (%) 11 | 11 12 Regions Visited 1 Branch Regions . Pre-discovered Areas . | . . Known Exits Taken . | . . Unknown Exits Taken 1 | 1 . Scrap Searched . | . . Spaces Dug 7 | 7 . Terrain Destroyed 10 | 10 . Melee . | . . Projectile 10 | 10 . AOE . | . . Terrain Rammed . | . . Walls Destroyed . | . . Machines Disabled . | . . Actions | -11 -10 --------- Run | Yrd Mat Total 404 | 296 108 Wait 2 | . 2 Move 302 | 228 74 Hop . | . . Pick Up 12 | 12 . Fast Attach . | . . Attach 10 | 9 1 Detach . | . . Swap 2 | 2 . Drop . | . . Fire 76 | 45 31 Melee . | . . Ram . | . . Kick . | . . Crush . | . . Escape Stasis . | . . Rewire . | . . Trap . | . . Miscellaneous . | . . Route ------- -11/Scrapyard -10/Materials History --------- Turn | Location | Event 2 | -11/Scrapyard | Met Revision 17 95 | -11/Scrapyard | Discovered new exit (range 8) 411 | -11/Scrapyard | Crushed by falling debris 450 | -11/Scrapyard | Entered Materials 451 | -10/Materials | Build established: Mutant 472 | -10/Materials | Core integrity fell below 50% 590 | -10/Materials | Core integrity fell below 20% 603 | -10/Materials | Destroyed by G-34 Mercenary with Small Laser Last Messages --------------- K-01 Serf collects debris. Triggered Alarm Trap. An alarm sounds. ALERT: Alarm triggered, dispatching investigation squad. U-05 Engineer lays Concrete. K-01 Serf collects debris. Connecting with Recycling Unit... Current location identified: Materials #201 7X0BFF7%4/ANW,:FU0V K-01 Serf cleans the Atomic Centrifuge. K-01 Serf collects debris. Heat Sink destroyed. K-01 Serf collects debris. System corrupted: Med. Laser rejected. K-01 Serf collects debris. Lgt. Assault Rifle destroyed. K-01 Serf collects debris. Lgt. Ion Engine destroyed. System corrupted: Matter fused (-6). Map ----- +----------------------------------------------------+ | ?????????????????????????????????????? | | ?????????????????????????????????????? | | ?????????????????????????????????????? | | ??????????????????????????#####??????? | | ??????????????????????????# #??????? | | ??????????????????????????# #??????? | | ??????????????????????????# #?##???? | | ??????????????????????????# # #???? | | ??????????????????????????# # ????? | | ??????????????????????????# #????? | | ??????????????????????????# # #????? | | ??????????????????????????# #??????? | | ??????????????????????????# #??????? | | ??????????????????????????# #??????? | | ??????????????????????????# #??????? | | ??????????????????????????# #??????? | | ??????????????????????????# #??????? | | ??????????????????????????# #??? ??? | | ??????????????????????????# #??""" ? | | ??????????????????????????# #? """ # | | ??????????????????????????# # """ # | | ??????????? ?????????????# = + # | | ???????????? ??????????# =# """ # | | ???????????? " ######### =[#??""" # | | ???????????? """ g #????" ? | | ???????????? "" g @ #??????? | | ?????????????""" g #??????? | | ????????????? "" ######### #??????? | | ??????????????????????????# #??????? | | ??????????????????????????# #??????? | | ??????????????????????????# #??????? | | ?????????????????????????## ##?????? | | ?????????????????????????# #?????? | | ?????????????????????????# #?????? | | ?????????????????????????# #?????? | | ?????????????????????????# #?????? | | ?????????????????????????# #?????? | | ????????????????????????####+#####???? | | ????????????????????????# #???? | | ????????????????????????# """ #???? | | ????????????????????????# """ #???? | | ????????????????????????# """ #???? | | ????????????????????????# #???? | | ????????????????????????# "" #???? | | ????????????????????????# Y" #???? | | ????????????????????????# "" #???? | | ????????????????????????# #???? | | ????????????????????????##########???? | | ?????????????????????????????????????? | | ?????????????????????????????????????? | +----------------------------------------------------+ Best States ------------- Heat Dissipation 35 Energy Generation 10 Energy Capacity 125 Matter Stores 350 Matter Capacity 350 Sight Range 16 Terrain Scan Density 10 Evasion (%) 55 Item Schematics ----------------- None Robot Schematics ------------------ None Fabricated ------------ Nothing Alien Tech Used ----------------- None Achievements -------------- Unlikely Earthworm Challenges ------------ None Game ------ Seed TripodPowerLink Manual? 0 Play Time 00:10:41 Cumulative 1.3 hours Start 2024.05.19 @ 23:29:39 End 2024.05.19 @ 23:39:56 Sessions 1 Manual Loads 0 Difficulty Rogue Special Mode None Game No. 2 Rogue 2 Adventurer 0 Explorer 0 Win Type - Total 0 Types 0/0/0/0/0/0/0/0/0 Lore% 0 Gallery% 3 Achievement% 3 Wizard Run 0 Options --------- Layout 1 ASCII 0 Keyboard 0 Movement Mouse Keybinds 0 Fullscreen 1 Font 24/Proggy Map View 50x35 Zoom Use 0% Tactical HUD 0 Map Filters NONE Filters NONE Steam 1 RUN: 32ea68d9-2bf4-4cbb-a4c9-9bfcc4f16de5